[Event "*** Titled Tuesday Blitz"]
[Site "Chess.com"]
[Date "2020.12.01"]
[Round "5"]
[White "Sacbutt"]
[Black "mjray79"]
[Result "1/2-1/2"]
[WhiteElo "2267"]
[BlackElo "2435"]
[TimeControl "180+1"]
[EndTime "10:56:11 PST"]
[Termination "Game drawn - insufficient material"]

1. e4 {[%clk 0:02:29.9]} 1... e5 {[%clk 0:03:00]} 2. Nf3 {[%clk 0:02:29.2]} 2...
Nc6 {[%clk 0:03:00.1]} 3. Bc4 {[%clk 0:02:29.5]} 3... Bc5 {[%clk 0:02:59.7]} 4.
c3 {[%clk 0:02:29.4]} 4... Nf6 {[%clk 0:02:59.7]} 5. d3 {[%clk 0:02:29.9]} 5...
O-O {[%clk 0:02:59.5]} 6. O-O {[%clk 0:02:30.1]} 6... d5 {[%clk 0:02:59.7]} 7.
exd5 {[%clk 0:02:29.7]} 7... Nxd5 {[%clk 0:03:00.6]} 8. Re1 {[%clk 0:02:29.9]}
8... Bg4 {[%clk 0:03:00.4]} 9. h3 {[%clk 0:02:29.8]} 9... Bh5 {[%clk 0:02:57.4]}
10. Nbd2 {[%clk 0:02:29.7]} 10... Nb6 {[%clk 0:02:56.2]} 11. Ne4 {[%clk
0:02:24.8]} 11... Nxc4 {[%clk 0:02:43]} 12. Nxc5 {[%clk 0:02:22.7]} 12... Nd6
{[%clk 0:02:40.3]} 13. g4 {[%clk 0:02:14.2]} 13... Bg6 {[%clk 0:02:39.9]} 14.
Nxe5 {[%clk 0:02:07.2]} 14... Nxe5 {[%clk 0:02:39.8]} 15. Rxe5 {[%clk
0:02:07.7]} 15... Qh4 {[%clk 0:02:39.8]} 16. Qf3 {[%clk 0:02:05.5]} 16... h6
{[%clk 0:02:31.3]} 17. d4 {[%clk 0:01:54.3]} 17... b6 {[%clk 0:02:16.1]} 18. Nd3
{[%clk 0:01:43.4]} 18... f5 {[%clk 0:02:00.1]} 19. Nf4 {[%clk 0:01:40.4]} 19...
Bh7 {[%clk 0:01:50.5]} 20. Ng2 {[%clk 0:00:56.2]} 20... Qf6 {[%clk 0:01:36.3]}
21. gxf5 {[%clk 0:00:49.1]} 21... Bxf5 {[%clk 0:01:27.4]} 22. Be3 {[%clk
0:00:45.5]} 22... Kh8 {[%clk 0:01:24.8]} 23. b3 {[%clk 0:00:42.8]} 23... Qg6
{[%clk 0:01:17.8]} 24. Qg3 {[%clk 0:00:41.7]} 24... Qxg3 {[%clk 0:01:17.6]} 25.
fxg3 {[%clk 0:00:42.6]} 25... Bxh3 {[%clk 0:01:18.1]} 26. Nf4 {[%clk 0:00:41.7]}
26... Bf5 {[%clk 0:01:14.7]} 27. c4 {[%clk 0:00:39]} 27... Rae8 {[%clk
0:01:13.6]} 28. Re1 {[%clk 0:00:37.3]} 28... Rxe5 {[%clk 0:01:10.4]} 29. dxe5
{[%clk 0:00:38.2]} 29... Ne4 {[%clk 0:01:10.5]} 30. Kg2 {[%clk 0:00:32.2]} 30...
Re8 {[%clk 0:01:07.2]} 31. Bd4 {[%clk 0:00:32]} 31... c5 {[%clk 0:01:03.7]} 32.
Bb2 {[%clk 0:00:31.5]} 32... Ng5 {[%clk 0:00:56.9]} 33. Nd5 {[%clk 0:00:30]}
33... Be4+ {[%clk 0:00:52.6]} 34. Kf2 {[%clk 0:00:27.4]} 34... Kg8 {[%clk
0:00:41.4]} 35. Ke3 {[%clk 0:00:24.7]} 35... Rf8 {[%clk 0:00:36.6]} 36. Nf4
{[%clk 0:00:21.1]} 36... Kf7 {[%clk 0:00:33.1]} 37. Rd1 {[%clk 0:00:20.8]} 37...
Ke7 {[%clk 0:00:32.4]} 38. a3 {[%clk 0:00:18.9]} 38... Bc2 {[%clk 0:00:29.7]}
39. Rd2 {[%clk 0:00:18.4]} 39... Be4 {[%clk 0:00:25.3]} 40. b4 {[%clk
0:00:17.8]} 40... cxb4 {[%clk 0:00:23.4]} 41. axb4 {[%clk 0:00:18.7]} 41... Rc8
{[%clk 0:00:23.3]} 42. Nd5+ {[%clk 0:00:15.4]} 42... Ke6 {[%clk 0:00:22.5]} 43.
Rd4 {[%clk 0:00:14]} 43... Bf5 {[%clk 0:00:17.1]} 44. Nf4+ {[%clk 0:00:13.1]}
44... Ke7 {[%clk 0:00:17.1]} 45. c5 {[%clk 0:00:13]} 45... bxc5 {[%clk
0:00:15.9]} 46. bxc5 {[%clk 0:00:13.9]} 46... Ne6 {[%clk 0:00:15.5]} 47. Nd5+
{[%clk 0:00:12.5]} 47... Ke8 {[%clk 0:00:15.2]} 48. Rc4 {[%clk 0:00:12.2]} 48...
Rxc5 {[%clk 0:00:12.7]} 49. Rxc5 {[%clk 0:00:12.1]} 49... Nxc5 {[%clk
0:00:13.6]} 50. Ba3 {[%clk 0:00:12]} 50... Nb7 {[%clk 0:00:11.6]} 51. Kf4 {[%clk
0:00:12.3]} 51... Be6 {[%clk 0:00:10.8]} 52. Nc7+ {[%clk 0:00:12.8]} 52... Kd7
{[%clk 0:00:11.2]} 53. Nxe6 {[%clk 0:00:12.8]} 53... Kxe6 {[%clk 0:00:12.1]} 54.
g4 {[%clk 0:00:13.1]} 54... Nd8 {[%clk 0:00:11.6]} 55. g5 {[%clk 0:00:13.4]}
55... hxg5+ {[%clk 0:00:10.7]} 56. Kxg5 {[%clk 0:00:14.3]} 56... Kxe5 {[%clk
0:00:09.8]} 57. Kg6 {[%clk 0:00:15.2]} 57... Ne6 {[%clk 0:00:10.3]} 58. Bb4
{[%clk 0:00:15.6]} 58... Kd5 {[%clk 0:00:08.7]} 59. Kf7 {[%clk 0:00:15.3]} 59...
g5 {[%clk 0:00:04.7]} 60. Kf6 {[%clk 0:00:16.2]} 60... g4 {[%clk 0:00:04.3]} 61.
Be1 {[%clk 0:00:17.1]} 61... Nd4 {[%clk 0:00:03.4]} 62. Kg5 {[%clk 0:00:15.9]}
62... Ke4 {[%clk 0:00:03.7]} 63. Kxg4 {[%clk 0:00:16.2]} 63... Kd3 {[%clk
0:00:03.8]} 64. Kf4 {[%clk 0:00:15.5]} 64... Nc2 {[%clk 0:00:04.4]} 65. Ba5
{[%clk 0:00:14.9]} 65... Kc4 {[%clk 0:00:05.3]} 66. Bd8 {[%clk 0:00:14.4]} 66...
Nb4 {[%clk 0:00:04.4]} 67. Kf3 {[%clk 0:00:14.8]} 67... Nc6 {[%clk 0:00:04.4]}
68. Bc7 {[%clk 0:00:15.2]} 68... Kd5 {[%clk 0:00:04.6]} 69. Ke2 {[%clk
0:00:15.6]} 69... Ke6 {[%clk 0:00:05]} 70. Kd2 {[%clk 0:00:15]} 70... Kd7 {[%clk
0:00:05.4]} 71. Bf4 {[%clk 0:00:14.1]} 71... a5 {[%clk 0:00:05.8]} 72. Kc1
{[%clk 0:00:14.3]} 72... Ke6 {[%clk 0:00:06.3]} 73. Kb2 {[%clk 0:00:14.6]} 73...
Kd5 {[%clk 0:00:06.7]} 74. Bd2 {[%clk 0:00:15]} 74... Kc4 {[%clk 0:00:07.1]} 75.
Bxa5 {[%clk 0:00:13.6]} 1/2-1/2

[Event "*** Titled Tuesday Blitz"]
[Site "Chess.com"]
[Date "2020.12.01"]
[Round "5"]
[White "ARMQUEEN"]
[Black "YIYUKI"]
[Result "0-1"]
[WhiteElo "2486"]
[BlackElo "2352"]
[TimeControl "180+1"]
[EndTime "10:56:14 PST"]
[Termination "YIYUKI won by resignation"]

1. e4 {[%clk 0:03:00.9]} 1... e5 {[%clk 0:02:54.7]} 2. Nf3 {[%clk 0:02:59.3]}
2... Nc6 {[%clk 0:02:54.7]} 3. d4 {[%clk 0:02:59.6]} 3... exd4 {[%clk
0:02:54.4]} 4. Nxd4 {[%clk 0:03:00.5]} 4... Bc5 {[%clk 0:02:54.3]} 5. Nb3 {[%clk
0:03:00.1]} 5... Bb6 {[%clk 0:02:54.5]} 6. Nc3 {[%clk 0:03:00.7]} 6... Nf6
{[%clk 0:02:53.9]} 7. Qe2 {[%clk 0:03:00.1]} 7... O-O {[%clk 0:02:53]} 8. Bg5
{[%clk 0:03:00.2]} 8... h6 {[%clk 0:02:52.4]} 9. Bh4 {[%clk 0:02:58.9]} 9... Re8
{[%clk 0:02:50.4]} 10. O-O-O {[%clk 0:02:57.4]} 10... a5 {[%clk 0:02:50.6]} 11.
a4 {[%clk 0:02:56.9]} 11... d6 {[%clk 0:02:45.8]} 12. Nd5 {[%clk 0:02:53.3]}
12... g5 {[%clk 0:02:40.9]} 13. Bg3 {[%clk 0:02:33.2]} 13... Nxe4 {[%clk
0:02:21.5]} 14. Qh5 {[%clk 0:02:31.3]} 14... Kg7 {[%clk 0:02:21.6]} 15. Nxb6
{[%clk 0:02:18.1]} 15... cxb6 {[%clk 0:02:21.1]} 16. Bd3 {[%clk 0:02:18.4]}
16... Bf5 {[%clk 0:02:19.8]} 17. Bxe4 {[%clk 0:02:15.7]} 17... Rxe4 {[%clk
0:02:15.9]} 18. Bxd6 {[%clk 0:02:15.7]} 18... Qf6 {[%clk 0:02:09.7]} 19. Qf3
{[%clk 0:02:11.1]} 19... Rae8 {[%clk 0:02:03.5]} 20. Bc7 {[%clk 0:02:02.2]}
20... Nb4 {[%clk 0:01:47.5]} 21. Rd6 {[%clk 0:01:36.6]} 21... Re1+ {[%clk
0:01:09.7]} 22. Rxe1 {[%clk 0:01:31.6]} 22... Rxe1+ {[%clk 0:01:09.5]} 23. Rd1
{[%clk 0:01:31.7]} 23... Rxd1+ {[%clk 0:01:03.7]} 24. Qxd1 {[%clk 0:01:31]}
24... Bxc2 {[%clk 0:01:02.4]} 25. Qd4 {[%clk 0:01:12.5]} 25... Bxb3 {[%clk
0:00:43.6]} 26. Be5 {[%clk 0:00:39.5]} 26... Nd3+ {[%clk 0:00:43.3]} 27. Qxd3
{[%clk 0:00:39.6]} 27... Qxe5 {[%clk 0:00:43.3]} 28. Qxb3 {[%clk 0:00:40.3]}
28... Qe1+ {[%clk 0:00:40.4]} 29. Kc2 {[%clk 0:00:38.3]} 29... Qxf2+ {[%clk
0:00:40.6]} 30. Kd3 {[%clk 0:00:38.2]} 30... Qf5+ {[%clk 0:00:38.2]} 31. Ke3
{[%clk 0:00:37]} 31... Qf4+ {[%clk 0:00:38.5]} 32. Ke2 {[%clk 0:00:36.8]} 32...
Qe4+ {[%clk 0:00:36.8]} 33. Kf2 {[%clk 0:00:36.8]} 33... Qf4+ {[%clk 0:00:35.6]}
34. Ke2 {[%clk 0:00:37.2]} 34... Qe4+ {[%clk 0:00:35.5]} 35. Kf2 {[%clk
0:00:37.6]} 35... Qc6 {[%clk 0:00:34.3]} 36. g3 {[%clk 0:00:32.5]} 36... Qc5+
{[%clk 0:00:34]} 37. Kf3 {[%clk 0:00:32.9]} 37... Kg6 {[%clk 0:00:32.4]} 38. g4
{[%clk 0:00:31.3]} 38... Qc6+ {[%clk 0:00:31.3]} 39. Kg3 {[%clk 0:00:30.7]}
39... f5 {[%clk 0:00:31.1]} 40. Qg8+ {[%clk 0:00:29.9]} 40... Kf6 {[%clk
0:00:30.7]} 41. Qf8+ {[%clk 0:00:30.3]} 41... Kg6 {[%clk 0:00:31]} 42. Qxf5+
{[%clk 0:00:30.6]} 42... Kg7 {[%clk 0:00:30.9]} 43. Qe5+ {[%clk 0:00:30.9]}
43... Kg8 {[%clk 0:00:30]} 44. Qd4 {[%clk 0:00:26.1]} 44... Qc7+ {[%clk
0:00:29.4]} 45. Kf3 {[%clk 0:00:25.7]} 45... Qf7+ {[%clk 0:00:29]} 46. Kg2
{[%clk 0:00:24.5]} 46... Qb3 {[%clk 0:00:26]} 47. Qd8+ {[%clk 0:00:21.6]} 47...
Kf7 {[%clk 0:00:25.8]} 48. Qc7+ {[%clk 0:00:20.8]} 48... Ke6 {[%clk 0:00:25.4]}
49. Qc8+ {[%clk 0:00:20.5]} 49... Kd6 {[%clk 0:00:25.1]} 50. Qd8+ {[%clk
0:00:19.5]} 50... Kc5 {[%clk 0:00:25]} 51. Qe7+ {[%clk 0:00:19.1]} 51... Kc4
{[%clk 0:00:23.7]} 52. Qe6+ {[%clk 0:00:19.4]} 52... Kb4 {[%clk 0:00:23.9]} 53.
Qxb6+ {[%clk 0:00:19.1]} 53... Kxa4 {[%clk 0:00:24.3]} 54. Qd4+ {[%clk
0:00:19.3]} 54... Qb4 {[%clk 0:00:24.2]} 55. Qd7+ {[%clk 0:00:19.5]} 55... b5
{[%clk 0:00:23.6]} 56. Qd1+ {[%clk 0:00:19.4]} 56... Qb3 {[%clk 0:00:23.4]} 57.
Qd4+ {[%clk 0:00:19.7]} 57... Qc4 {[%clk 0:00:23.5]} 58. Qd1+ {[%clk 0:00:19.3]}
58... Kb4 {[%clk 0:00:23.8]} 59. Qd2+ {[%clk 0:00:19.6]} 59... Kb3 {[%clk
0:00:24]} 60. h3 {[%clk 0:00:14.2]} 60... Qc2 {[%clk 0:00:21.7]} 61. Qxc2+
{[%clk 0:00:11.1]} 61... Kxc2 {[%clk 0:00:22]} 62. Kf3 {[%clk 0:00:12]} 62...
Kxb2 {[%clk 0:00:21.2]} 63. Ke4 {[%clk 0:00:12.9]} 63... a4 {[%clk 0:00:21.7]}
64. Kf5 {[%clk 0:00:13.8]} 64... a3 {[%clk 0:00:22.1]} 65. Kg6 {[%clk
0:00:14.7]} 65... a2 {[%clk 0:00:22.4]} 66. Kxh6 {[%clk 0:00:15.6]} 66... a1=Q
{[%clk 0:00:22.4]} 67. Kxg5 {[%clk 0:00:16.5]} 67... Qc1+ {[%clk 0:00:21.2]} 68.
Kg6 {[%clk 0:00:16.1]} 68... Kc3 {[%clk 0:00:20.7]} 69. h4 {[%clk 0:00:16.4]}
69... Kd4 {[%clk 0:00:20.8]} 70. h5 {[%clk 0:00:16.9]} 70... Ke5 {[%clk
0:00:21.1]} 71. h6 {[%clk 0:00:17.1]} 71... Qf4 {[%clk 0:00:19.6]} 72. g5 {[%clk
0:00:17]} 72... Qf5+ {[%clk 0:00:19.3]} 73. Kg7 {[%clk 0:00:17.4]} 73... Qxg5+
{[%clk 0:00:19.5]} 74. Kh7 {[%clk 0:00:17.6]} 74... Kf6 {[%clk 0:00:17.1]} 75.
Kh8 {[%clk 0:00:17.5]} 75... Qxh6+ {[%clk 0:00:17.5]} 0-1

[Event "*** Titled Tuesday Blitz"]
[Site "Chess.com"]
[Date "2020.12.01"]
[Round "5"]
[White "ChessWarrior7197"]
[Black "youngKID"]
[Result "0-1"]
[WhiteElo "2980"]
[BlackElo "2862"]
[TimeControl "180+1"]
[EndTime "10:56:19 PST"]
[Termination "youngKID won by checkmate"]

1. e4 {[%clk 0:03:00.9]} 1... e5 {[%clk 0:03:00.1]} 2. Nf3 {[%clk 0:02:59.5]}
2... Nc6 {[%clk 0:03:00.4]} 3. Bb5 {[%clk 0:03:00]} 3... Nf6 {[%clk 0:02:59.4]}
4. d3 {[%clk 0:02:59.3]} 4... Bc5 {[%clk 0:02:58.4]} 5. c3 {[%clk 0:02:59.9]}
5... O-O {[%clk 0:02:58.6]} 6. O-O {[%clk 0:02:58.4]} 6... d5 {[%clk 0:02:58.8]}
7. exd5 {[%clk 0:02:59.3]} 7... Nxd5 {[%clk 0:02:58.5]} 8. Bxc6 {[%clk
0:02:53.4]} 8... bxc6 {[%clk 0:02:58.1]} 9. Nxe5 {[%clk 0:02:53]} 9... Bd6
{[%clk 0:02:54.8]} 10. d4 {[%clk 0:02:51.8]} 10... c5 {[%clk 0:02:44.9]} 11. Re1
{[%clk 0:02:44.7]} 11... Bb7 {[%clk 0:02:35.8]} 12. c4 {[%clk 0:02:20.6]} 12...
Nb6 {[%clk 0:02:05.2]} 13. dxc5 {[%clk 0:02:18.5]} 13... Bxc5 {[%clk 0:02:05]}
14. Nc3 {[%clk 0:02:07.9]} 14... Qf6 {[%clk 0:01:41.7]} 15. Ng4 {[%clk
0:01:48.5]} 15... Qc6 {[%clk 0:01:24.8]} 16. Ne4 {[%clk 0:01:28.4]} 16... Rfe8
{[%clk 0:01:11.9]} 17. Nh6+ {[%clk 0:00:49.9]} 17... gxh6 {[%clk 0:00:51.8]} 18.
Qg4+ {[%clk 0:00:50.1]} 18... Kh8 {[%clk 0:00:34.5]} 19. Bxh6 {[%clk 0:00:50.6]}
19... Qxh6 {[%clk 0:00:09.6]} 20. Nxc5 {[%clk 0:00:50.4]} 20... Bc6 {[%clk
0:00:10]} 21. g3 {[%clk 0:00:39.2]} 21... Qf6 {[%clk 0:00:06.4]} 22. Ne4 {[%clk
0:00:20.3]} 22... Qxb2 {[%clk 0:00:04.9]} 23. Rad1 {[%clk 0:00:18.2]} 23... Qg7
{[%clk 0:00:04.4]} 24. Qf4 {[%clk 0:00:17.9]} 24... Qe5 {[%clk 0:00:02.4]} 25.
Qxf7 {[%clk 0:00:13.6]} 25... Bxe4 {[%clk 0:00:02.7]} 26. c5 {[%clk 0:00:13.5]}
26... Nd5 {[%clk 0:00:02.4]} 27. f3 {[%clk 0:00:12.7]} 27... Bg6 {[%clk
0:00:02.5]} 28. Qxd5 {[%clk 0:00:07.5]} 28... Qxd5 {[%clk 0:00:02.9]} 29. Rxe8+
{[%clk 0:00:08.4]} 29... Rxe8 {[%clk 0:00:03.5]} 30. Rxd5 {[%clk 0:00:09.3]}
30... Re7 {[%clk 0:00:04.4]} 31. Kf2 {[%clk 0:00:09.3]} 31... Kg7 {[%clk
0:00:04]} 32. g4 {[%clk 0:00:09.3]} 32... Bf7 {[%clk 0:00:04.5]} 33. Rd2 {[%clk
0:00:09.9]} 33... Re6 {[%clk 0:00:04.8]} 34. Rc2 {[%clk 0:00:08.5]} 34... Ra6
{[%clk 0:00:04.9]} 35. Rc3 {[%clk 0:00:09]} 35... Rxa2+ {[%clk 0:00:05.3]} 36.
Kg3 {[%clk 0:00:09.9]} 36... a5 {[%clk 0:00:06]} 37. Re3 {[%clk 0:00:09.7]}
37... c6 {[%clk 0:00:06.3]} 38. Re7 {[%clk 0:00:09.5]} 38... a4 {[%clk
0:00:06.8]} 39. h4 {[%clk 0:00:10]} 39... a3 {[%clk 0:00:07.1]} 40. h5 {[%clk
0:00:05.1]} 40... Ra1 {[%clk 0:00:07.1]} 41. h6+ {[%clk 0:00:05.7]} 41... Kf8
{[%clk 0:00:07.5]} 42. Ra7 {[%clk 0:00:04.5]} 42... a2 {[%clk 0:00:08]} 43. Kf4
{[%clk 0:00:05]} 43... Rd1 {[%clk 0:00:07.9]} 44. Ra8+ {[%clk 0:00:05.9]} 44...
Ke7 {[%clk 0:00:07.7]} 45. Ra7+ {[%clk 0:00:06.8]} 45... Ke8 {[%clk 0:00:07]}
46. Ra8+ {[%clk 0:00:07.2]} 46... Kd7 {[%clk 0:00:07.5]} 47. Ra7+ {[%clk
0:00:07.2]} 47... Kc8 {[%clk 0:00:05.6]} 48. Rxf7 {[%clk 0:00:04.6]} 48... a1=Q
{[%clk 0:00:04.9]} 49. Kf5 {[%clk 0:00:04.9]} 49... Qd4 {[%clk 0:00:04.4]} 50.
Rxh7 {[%clk 0:00:03.6]} 50... Qd3+ {[%clk 0:00:04.7]} 51. Kf6 {[%clk 0:00:04]}
51... Qxh7 {[%clk 0:00:05.6]} 52. g5 {[%clk 0:00:04.9]} 52... Qh8+ {[%clk
0:00:05.5]} 53. Kg6 {[%clk 0:00:05.1]} 53... Rd7 {[%clk 0:00:06.2]} 54. f4
{[%clk 0:00:05]} 54... Qe8+ {[%clk 0:00:06.7]} 55. Kf5 {[%clk 0:00:04.7]} 55...
Qf7+ {[%clk 0:00:07.2]} 56. Kg4 {[%clk 0:00:05.6]} 56... Rd4 {[%clk 0:00:08]}
57. h7 {[%clk 0:00:05.6]} 57... Qxf4+ {[%clk 0:00:08.9]} 58. Kh5 {[%clk
0:00:05.6]} 58... Qh4+ {[%clk 0:00:09.2]} 59. Kg6 {[%clk 0:00:06.5]} 59... Rd7
{[%clk 0:00:08.9]} 60. h8=Q+ {[%clk 0:00:06.7]} 60... Qxh8 {[%clk 0:00:09.8]}
61. Kf5 {[%clk 0:00:07.2]} 61... Qg7 {[%clk 0:00:10.2]} 62. Kg4 {[%clk
0:00:07.9]} 62... Rd5 {[%clk 0:00:10.4]} 63. Kf3 {[%clk 0:00:05.1]} 63... Qxg5
{[%clk 0:00:10.6]} 64. Ke4 {[%clk 0:00:06]} 64... Qe7+ {[%clk 0:00:11.2]} 65.
Kf4 {[%clk 0:00:06.1]} 65... Qe6 {[%clk 0:00:11]} 66. Kf3 {[%clk 0:00:06.3]}
66... Rf5+ {[%clk 0:00:11.9]} 67. Kg3 {[%clk 0:00:07.2]} 67... Qg6+ {[%clk
0:00:12.8]} 68. Kh4 {[%clk 0:00:08.1]} 68... Rh5# {[%clk 0:00:13.5]} 0-1

[Event "*** Titled Tuesday Blitz"]
[Site "Chess.com"]
[Date "2020.12.01"]
[Round "5"]
[White "marciojor"]
[Black "Chessalary"]
[Result "1/2-1/2"]
[WhiteElo "2252"]
[BlackElo "2403"]
[TimeControl "180+1"]
[EndTime "10:56:19 PST"]
[Termination "Game drawn - insufficient material"]

1. e4 {[%clk 0:03:00.9]} 1... c5 {[%clk 0:02:56.9]} 2. Nf3 {[%clk 0:03:00.8]}
2... d6 {[%clk 0:02:57.4]} 3. d4 {[%clk 0:03:01.3]} 3... cxd4 {[%clk 0:02:58.3]}
4. Nxd4 {[%clk 0:03:02]} 4... Nf6 {[%clk 0:02:58.8]} 5. Nc3 {[%clk 0:03:02.6]}
5... a6 {[%clk 0:02:50.5]} 6. Be2 {[%clk 0:03:02.8]} 6... e6 {[%clk 0:02:49.1]}
7. O-O {[%clk 0:03:02.8]} 7... Be7 {[%clk 0:02:49.7]} 8. Be3 {[%clk 0:03:02.8]}
8... O-O {[%clk 0:02:49.6]} 9. f4 {[%clk 0:03:01.4]} 9... Qc7 {[%clk 0:02:50]}
10. Bf3 {[%clk 0:02:59.8]} 10... Nc6 {[%clk 0:02:49.2]} 11. Qe1 {[%clk
0:02:59.9]} 11... Nxd4 {[%clk 0:02:47.9]} 12. Bxd4 {[%clk 0:02:59.9]} 12... e5
{[%clk 0:02:48.5]} 13. fxe5 {[%clk 0:02:59.3]} 13... dxe5 {[%clk 0:02:49.4]} 14.
Be3 {[%clk 0:02:58.8]} 14... Be6 {[%clk 0:02:45.4]} 15. Rd1 {[%clk 0:02:58.2]}
15... Rfd8 {[%clk 0:02:39.3]} 16. Qg3 {[%clk 0:02:57.7]} 16... Bc5 {[%clk
0:02:37.5]} 17. Bxc5 {[%clk 0:02:23.1]} 17... Qxc5+ {[%clk 0:02:38.4]} 18. Kh1
{[%clk 0:02:23.3]} 18... Bc4 {[%clk 0:02:29.3]} 19. Rfe1 {[%clk 0:02:09.7]}
19... Rd4 {[%clk 0:02:24.5]} 20. Nd5 {[%clk 0:01:34.9]} 20... Bxd5 {[%clk
0:02:13.7]} 21. exd5 {[%clk 0:01:34]} 21... Qxc2 {[%clk 0:02:07.3]} 22. Qxe5
{[%clk 0:01:29.2]} 22... Rxd1 {[%clk 0:02:03.2]} 23. Rxd1 {[%clk 0:01:29]} 23...
Rd8 {[%clk 0:02:01.4]} 24. d6 {[%clk 0:01:27.2]} 24... h6 {[%clk 0:01:52.5]} 25.
h3 {[%clk 0:01:23.3]} 25... Rd7 {[%clk 0:01:42.3]} 26. Kh2 {[%clk 0:01:15.8]}
26... Qa4 {[%clk 0:01:22.2]} 27. Rd4 {[%clk 0:01:10.7]} 27... Qxa2 {[%clk
0:01:16.8]} 28. Rb4 {[%clk 0:00:27.8]} 28... Qe6 {[%clk 0:01:10.6]} 29. Qxe6
{[%clk 0:00:27.5]} 29... fxe6 {[%clk 0:01:11.5]} 30. Bxb7 {[%clk 0:00:27.7]}
30... Rxd6 {[%clk 0:01:11.4]} 31. Ra4 {[%clk 0:00:26.6]} 31... Rb6 {[%clk
0:01:07.7]} 32. Bxa6 {[%clk 0:00:26.6]} 32... Rxb2 {[%clk 0:01:06.7]} 33. Bc4
{[%clk 0:00:27]} 33... Rb6 {[%clk 0:01:01.2]} 34. Ra7 {[%clk 0:00:25.5]} 34...
Rc6 {[%clk 0:00:47.5]} 35. Ba2 {[%clk 0:00:24.6]} 35... Kf8 {[%clk 0:00:42.8]}
36. Kg3 {[%clk 0:00:17.5]} 36... g5 {[%clk 0:00:40.4]} 37. Kf3 {[%clk
0:00:17.6]} 37... Rd6 {[%clk 0:00:31.8]} 38. Ke3 {[%clk 0:00:17.1]} 38... Nd7
{[%clk 0:00:30.1]} 39. Bb3 {[%clk 0:00:16.5]} 39... Ke7 {[%clk 0:00:29.5]} 40.
Ba4 {[%clk 0:00:15.9]} 40... e5 {[%clk 0:00:24.8]} 41. Ke4 {[%clk 0:00:15.7]}
41... Rd4+ {[%clk 0:00:19.1]} 42. Kf5 {[%clk 0:00:15.1]} 42... Rf4+ {[%clk
0:00:18.4]} 43. Kg6 {[%clk 0:00:15.7]} 43... Rf6+ {[%clk 0:00:18.5]} 44. Kh5
{[%clk 0:00:15.4]} 44... Rd6 {[%clk 0:00:19.1]} 45. Kg4 {[%clk 0:00:14.9]} 45...
Ke6 {[%clk 0:00:17.6]} 46. Bxd7+ {[%clk 0:00:14.1]} 46... Rxd7 {[%clk
0:00:18.5]} 47. Rxd7 {[%clk 0:00:14.4]} 47... Kxd7 {[%clk 0:00:19.4]} 48. Kf5
{[%clk 0:00:14.5]} 48... Kd6 {[%clk 0:00:19.8]} 49. Ke4 {[%clk 0:00:14.7]} 49...
h5 {[%clk 0:00:18.6]} 50. Kf5 {[%clk 0:00:13.6]} 50... Kd5 {[%clk 0:00:12.7]}
51. Kxg5 {[%clk 0:00:13.7]} 51... e4 {[%clk 0:00:10.6]} 52. Kf4 {[%clk
0:00:11.2]} 52... Kd4 {[%clk 0:00:08.2]} 53. g4 {[%clk 0:00:11.8]} 53... hxg4
{[%clk 0:00:07.6]} 54. hxg4 {[%clk 0:00:12.4]} 54... e3 {[%clk 0:00:07.7]} 55.
g5 {[%clk 0:00:10.5]} 55... Kd3 {[%clk 0:00:08]} 56. g6 {[%clk 0:00:10.9]} 56...
e2 {[%clk 0:00:07.6]} 57. g7 {[%clk 0:00:11.2]} 57... e1=Q {[%clk 0:00:07.7]}
58. g8=Q {[%clk 0:00:11.3]} 58... Qe4+ {[%clk 0:00:06.9]} 59. Kg3 {[%clk
0:00:09.1]} 59... Qe3+ {[%clk 0:00:07.3]} 60. Kh4 {[%clk 0:00:08.6]} 60... Qf4+
{[%clk 0:00:04.8]} 61. Kh3 {[%clk 0:00:08.7]} 61... Qf1+ {[%clk 0:00:04.4]} 62.
Kh2 {[%clk 0:00:08.7]} 62... Qf2+ {[%clk 0:00:04.1]} 63. Qg2 {[%clk 0:00:08.7]}
63... Qh4+ {[%clk 0:00:03.7]} 64. Qh3+ {[%clk 0:00:08.1]} 64... Qxh3+ {[%clk
0:00:04.2]} 65. Kxh3 {[%clk 0:00:08.7]} 1/2-1/2